fUSD/lending_fUSD_20250106
["ID","MTS","AMOUNT","RATE_DAILY","PERIOD"]
[347830144,1736143839126,-500.0,0.00010134,2]
[347830145,1736143839135,-686.5,0.00010134,2]
[347830146,1736143839144,-758.48,0.00010134,2]
[347830147,1736143839153,-571.94,0.00010134,2]
[347830148,1736143839162,-500.0,0.00010134,2]
[347830149,1736143839171,-500.0,0.00010134,2]
[347830150,1736143839181,-500.0,0.00010134,2]
[347830151,1736143839191,-1142.42,0.00010134,2]
[347830152,1736143839200,-638.7,0.00010134,2]
[347830153,1736143839209,-957.15,0.00010134,2]
[347830154,1736143839219,-1684.04,0.00010134,2]
[347830155,1736143839229,-500.0,0.00010134,2]
[347830156,1736143839238,-1350.66,0.00010134,2]
[347830157,1736143839247,-500.0,0.00010134,2]
[347830158,1736143839256,-500.0,0.00010134,2]
[347830159,1736143839265,-768.28,0.00010134,2]
[347830160,1736143839274,-500.0,0.00010134,2]
[347830161,1736143839284,-719.64,0.00010134,2]
[347830162,1736143839293,-500.0,0.00010134,2]
[347830163,1736143839303,-1100.22,0.00010134,2]
[347830164,1736143839312,-702.9,0.00010134,2]
[347830165,1736143839322,-500.0,0.00010134,2]
[347830166,1736143839331,-1293.77,0.00010134,2]
[347830167,1736143839341,-685.43,0.00010134,2]
[347830168,1736143839350,-500.0,0.00010135,2]
[347830169,1736143839359,-500.0,0.00010135,2]
[347830170,1736143839368,-500.0,0.00010135,2]
[347830171,1736143839378,-500.0,0.00010135,2]
[347830172,1736143839387,-500.0,0.00010135,2]
[347830173,1736143839396,-500.0,0.00010135,2]
[347830174,1736143839405,-500.0,0.00010135,2]
[347830175,1736143839414,-500.0,0.00010135,2]
[347830176,1736143839424,-500.0,0.00010135,2]
[347830177,1736143839434,-500.0,0.00010135,2]
[347830178,1736143839443,-397.84440453,0.00010135,2]
[347830179,1736143839452,-500.0,0.00010135,2]
[347830180,1736143839461,-620.9,0.00010135,2]
[347830181,1736143839471,-500.0,0.00010135,2]
[347830182,1736143839480,-500.0,0.00010135,2]
[347830183,1736143839490,-500.0,0.00010135,2]
[347830184,1736143839499,-396.28938906,0.00010135,2]
[347830185,1736143839509,-500.0,0.00010135,2]
[347830186,1736143839518,-830.04,0.00010135,2]
[347830187,1736143839528,-500.0,0.00010135,2]
[347830188,1736143839537,-500.0,0.00010135,2]
[347830189,1736143839546,-500.0,0.00010135,2]
[347830190,1736143839555,-500.0,0.00010135,2]
[347830191,1736143839564,-500.0,0.00010135,2]
[347830192,1736143839574,-500.0,0.00010135,2]
[347830193,1736143839583,-500.0,0.00010135,2]
[347830194,1736143839592,-500.0,0.00010135,2]
[347830195,1736143839603,-500.0,0.00010135,2]
[347830196,1736143839613,-524.5,0.00010135,2]
[347830197,1736143839624,-500.0,0.00010135,2]
[347830198,1736143839634,-500.0,0.00010135,2]
[347830199,1736143839643,-500.0,0.00010135,2]
[347830200,1736143839654,-500.0,0.00010135,2]
[347830201,1736143839663,-500.0,0.00010135,2]
[347830202,1736143839672,-500.0,0.00010135,2]
[347830203,1736143839682,-500.0,0.00010135,2]
[347830204,1736143839693,-500.0,0.00010135,2]
[347830205,1736143839702,-500.0,0.00010135,2]
[347830206,1736143839711,-500.0,0.00010135,2]
[347830210,1736143839906,-500.0,0.00010135,2]
[347830211,1736143839918,-500.0,0.00010135,2]
[347830212,1736143839928,-500.0,0.00010135,2]
[347830213,1736143839938,-500.0,0.00010135,2]
[347830214,1736143839947,-500.0,0.00010135,2]
[347830215,1736143839956,-500.0,0.00010135,2]
[347830216,1736143839966,-500.0,0.00010135,2]
[347830217,1736143839975,-500.0,0.00010135,2]
[347830218,1736143839985,-1086.63,0.00010135,2]
[347830219,1736143839994,-500.0,0.00010135,2]
[347830220,1736143840004,-500.0,0.00010135,2]
[347830221,1736143840013,-500.0,0.00010135,2]
[347830222,1736143840023,-500.0,0.00010135,2]
[347830223,1736143840032,-500.0,0.00010135,2]
[347830224,1736143840042,-500.0,0.00010135,2]
[347830225,1736143840051,-500.0,0.00010135,2]
[347830226,1736143840061,-500.0,0.00010135,2]
[347830227,1736143840071,-500.0,0.00010135,2]
[347830228,1736143840080,-500.0,0.00010135,2]
[347830229,1736143840089,-500.0,0.00010135,2]
[347830230,1736143840099,-500.0,0.00010135,2]
[347830231,1736143840108,-528.69,0.00010135,2]
[347830232,1736143840118,-500.0,0.00010135,2]
[347830233,1736143840128,-500.0,0.00010135,2]
[347830234,1736143840137,-500.0,0.00010135,2]
[347830235,1736143840146,-500.0,0.00010135,2]
[347830236,1736143840156,-500.0,0.00010135,2]
[347830237,1736143840165,-708.2,0.00010135,2]
[347830238,1736143840175,-500.0,0.00010135,2]
[347830239,1736143840185,-500.0,0.00010135,2]
[347830240,1736143840194,-500.0,0.00010135,2]
[347830241,1736143840204,-500.0,0.00010135,2]
[347830242,1736143840214,-500.0,0.00010135,2]
[347830243,1736143840224,-500.0,0.00010135,2]
[347830244,1736143840234,-500.0,0.00010135,2]
[347830245,1736143840244,-967.133426,0.00010135,2]
[347830246,1736143840254,-500.0,0.00010135,2]
[347830247,1736143840264,-500.0,0.00010135,2]
[347830248,1736143840273,-500.0,0.00010135,2]
[347830249,1736143840283,-500.0,0.00010135,2]
[347830250,1736143840293,-500.0,0.00010135,2]
[347830251,1736143840303,-1006.528706,0.00010135,2]
[347830252,1736143840312,-500.0,0.00010135,2]
[347830253,1736143840322,-3158.76,0.00010135,2]
[347830254,1736143840331,-160.254242,0.00010135,2]
[347830255,1736143840341,-586.47,0.00010135,2]
[347830256,1736143840351,-155.918964,0.00010135,2]
[347830257,1736143840360,-500.0,0.00010135,2]
[347830258,1736143840371,-318.97017049,0.00010135,2]
[347830259,1736143840382,-500.0,0.00010135,2]
[347830260,1736143840391,-500.0,0.00010135,2]
[347830261,1736143840401,-573.18,0.00010135,2]
[347830262,1736143840410,-500.0,0.00010135,2]
[347830263,1736143840420,-513.21,0.00010135,2]
[347830264,1736143840429,-1778.47,0.00010135,2]
[347830265,1736143840439,-500.0,0.00010135,2]
[347830266,1736143840448,-500.0,0.00010135,2]
[347830267,1736143840458,-500.0,0.00010135,2]
[347830268,1736143840468,-500.0,0.00010135,2]
[347830269,1736143840478,-500.0,0.00010135,2]
[347830270,1736143840488,-553.95,0.00010135,2]
[347830272,1736143840497,-500.0,0.00010135,2]
[347830273,1736143840507,-770.76,0.00010135,2]
[347830274,1736143840516,-500.0,0.00010135,2]
[347830275,1736143840526,-500.0,0.00010135,2]
[347830276,1736143840536,-1717.62,0.00010135,2]
[347830277,1736143840545,-500.0,0.00010135,2]
[347830278,1736143840555,-500.0,0.00010135,2]
[347830279,1736143840565,-504.83186551,0.00010135,2]
[347830280,1736143840575,-1770.36,0.00010135,2]
[347830281,1736143840585,-500.0,0.00010135,2]
[347830282,1736143840595,-3188.75,0.00010135,2]
[347830283,1736143840608,-500.0,0.00010135,2]
[347830284,1736143840622,-500.0,0.00010135,2]
[347830285,1736143840635,-516.41,0.00010135,2]
[347830286,1736143840645,-500.0,0.00010135,2]
[347830287,1736143840654,-500.0,0.00010135,2]
[347830288,1736143840664,-7729.26,0.00010135,2]
[347830289,1736143840674,-500.0,0.00010135,2]
[347830290,1736143840684,-500.0,0.00010135,2]
[347830291,1736143840694,-2632.02,0.00010135,2]
[347830292,1736143840704,-500.0,0.00010135,2]
[347830293,1736143840714,-500.0,0.00010135,2]
[347830294,1736143840724,-2719.49,0.00010135,2]
[347830295,1736143840734,-500.0,0.00010135,2]
[347830296,1736143840744,-500.0,0.00010135,2]
[347830297,1736143840754,-500.0,0.00010135,2]
[347830298,1736143840763,-500.0,0.00010135,2]
[347830299,1736143840773,-3231.42,0.00010135,2]
[347830300,1736143840783,-500.0,0.00010135,2]
[347830301,1736143840793,-500.0,0.00010135,2]
[347830302,1736143840803,-161.84654381,0.00010135,2]
[347830303,1736143840813,-500.0,0.00010135,2]
[347830304,1736143840823,-848.87,0.00010135,2]
[347830305,1736143840832,-500.0,0.00010135,2]
[347830306,1736143840843,-1560.41,0.00010135,2]
[347830307,1736143840853,-533.39,0.00010135,2]
[347830308,1736143840863,-1543.5,0.00010135,2]
[347830309,1736143840876,-500.0,0.00010135,2]
[347830310,1736143840886,-2626.21,0.00010135,2]
[347830311,1736143840895,-500.0,0.00010135,2]
[347830312,1736143840905,-535.67,0.00010135,2]
[347830313,1736143840915,-500.0,0.00010135,2]
[347830314,1736143840926,-500.0,0.00010135,2]
[347830315,1736143840936,-500.0,0.00010135,2]
[347830316,1736143840946,-500.0,0.00010135,2]
[347830317,1736143840955,-500.0,0.00010135,2]
[347830318,1736143840965,-500.0,0.00010135,2]
[347830319,1736143840975,-2874.78,0.00010135,2]
[347830320,1736143840985,-1036.42,0.00010135,2]
[347830321,1736143840995,-500.0,0.00010135,2]
[347830322,1736143841004,-619.76,0.00010135,2]
[347830323,1736143841014,-500.0,0.00010135,2]
[347830324,1736143841024,-500.0,0.00010135,2]
[347830325,1736143841033,-500.0,0.00010135,2]
[347830326,1736143841043,-3337.59,0.00010135,2]
[347830327,1736143841052,-500.0,0.00010135,2]
[347830328,1736143841061,-500.0,0.00010135,2]
[347830329,1736143841071,-500.0,0.00010135,2]
[347830330,1736143841081,-500.0,0.00010135,2]
[347830331,1736143841091,-1729.25,0.00010135,2]
[347830332,1736143841101,-500.0,0.00010135,2]
[347830333,1736143841111,-560.27,0.00010135,2]
[347830334,1736143841125,-1570.08,0.00010135,2]
[347830335,1736143841136,-742.17,0.00010135,2]
[347830336,1736143841147,-500.0,0.00010135,2]
[347830337,1736143841157,-565.34,0.00010135,2]
[347830338,1736143841166,-500.0,0.00010135,2]
[347830339,1736143841175,-500.0,0.00010135,2]
[347830340,1736143841185,-500.0,0.00010135,2]
[347830341,1736143841195,-500.0,0.00010135,2]
[347830342,1736143841204,-500.0,0.00010135,2]
[347830343,1736143841214,-562.7,0.00010135,2]
[347830344,1736143841224,-500.0,0.00010135,2]
[347830345,1736143841234,-500.0,0.00010135,2]
[347830346,1736143841244,-500.0,0.00010135,2]
[347830347,1736143841253,-500.0,0.00010135,2]
[347830348,1736143841263,-2952.51,0.00010135,2]
[347830349,1736143841272,-500.0,0.00010135,2]
[347830350,1736143841282,-500.0,0.00010135,2]
[347830351,1736143841291,-500.0,0.00010135,2]
[347830352,1736143841301,-500.0,0.00010135,2]
[347830353,1736143841310,-422.15349019,0.00010135,2]
[347830354,1736143841319,-500.0,0.00010135,2]
[347830355,1736143841329,-543.01,0.00010135,2]
[347830356,1736143841339,-3814.91,0.00010135,2]
[347830357,1736143841348,-500.0,0.00010135,2]
[347830358,1736143841358,-500.0,0.00010135,2]
[347830359,1736143841367,-500.0,0.00010135,2]
[347830360,1736143841384,-4566.4,0.00010135,2]
[347830361,1736143841395,-794.82114902,0.00010135,2]
[347830362,1736143841405,-7225.58314198,0.00010136,2]
[347830363,1736143841415,-489.0658,0.00010136,2]
[347830364,1736143841424,-500.0,0.00010136,2]
[347830365,1736143841434,-823.03,0.00010136,2]
[347830366,1736143841444,-1672.26,0.00010136,2]
[347830367,1736143841454,-1276.52,0.00010136,2]
[347830368,1736143841464,-849.62,0.00010136,2]
[347830369,1736143841474,-1000.0,0.00010136,2]
[347830370,1736143841483,-687.28,0.00010136,2]
[347830371,1736143841493,-500.0,0.00010136,2]
[347830372,1736143841502,-500.0,0.00010136,2]
[347830373,1736143841512,-2352.1,0.00010136,2]
[347830374,1736143841522,-1792.0,0.00010136,2]
[347830375,1736143841531,-1611.75,0.00010136,2]
[347830376,1736143841541,-898.71,0.00010136,2]
[347830377,1736143841550,-842.83,0.00010136,2]
[347830378,1736143841559,-510.01,0.00010136,2]
[347830379,1736143841569,-523.7,0.00010136,2]
[347830380,1736143841578,-6240016.38336124,0.00010137,2]
[347830381,1736143841597,-431.89977092,0.00010137,2]
[347830382,1736143841610,-6983.32685069,0.00010137,2]
[347830383,1736143841627,-61652.86444742,0.00010137,2]
[347830384,1736143841833,-6594.82303768,0.00010137,2]
[347830385,1736143841844,-1472.11684663,0.00010137,2]
[347830386,1736143841856,-418.54789703,0.00010137,2]
[347830387,1736143841869,-1269.10797269,0.00010137,2]
[347830388,1736143841890,-576.17759051,0.00010137,2]
[347830393,1736143842832,-501.05350463,0.00010137,2]
[347830394,1736143842928,-77987.22539437,0.00010137,2]
[347830395,1736143842940,-300.0,0.00010137,2]
[347830396,1736143842951,-2599.444995,0.00010137,2]
[347830397,1736143843047,-3851.88067639,0.00010137,2]
[347830398,1736143843059,-1068.64597801,0.00010137,2]
[347830399,1736143843224,-500.0,0.00010135,2]
[347830400,1736143843234,-3549.1615056,0.00010137,2]
[347830414,1736143845867,-2648.28541321,0.0001,2]
[347830415,1736143845879,-500.0,0.00010134,2]
[347830416,1736143845889,-926.8362,0.00010134,2]
[347830417,1736143845899,-1544.59,0.00010135,2]
[347830418,1736143845908,-635.76742379,0.00010137,2]
[347830419,1736143846207,-500.0,0.00010137,2]
[347830420,1736143846224,-29818.96215956,0.00010137,2]
[347830421,1736143846241,-351256.18530613,0.00010137,2]
[347830422,1736143846251,-1226.224995,0.00010137,2]
[347830423,1736143846263,-14757.57195978,0.00010137,2]
[347830430,1736144125088,347.0,0.00017,60]
[347830431,1736144177247,156.0,7.114e-05,2]
[347830433,1736144511855,-462.62,8.219e-05,2]
[347830434,1736144511878,-250.0,9.269e-05,2]
[347830435,1736144511901,-287.38,9.304e-05,2]
[347830436,1736144513692,-306.11,9.304e-05,2]
[347830437,1736144513716,-693.89,9.319e-05,2]
[347830438,1736144548724,-306.11,9.319e-05,2]
[347830439,1736144548747,-361.363,9.63e-05,2]
[347830440,1736144548769,-1332.527,9.937e-05,2]
[347830441,1736144552391,-2000.0,9.937e-05,2]
[347830442,1736144555400,-2000.0,9.937e-05,2]
[347830443,1736144559907,-2000.0,9.937e-05,2]
[347830444,1736144567905,-10316.139843,9.937e-05,2]
[347830445,1736144567927,-387.25,9.998e-05,2]
[347830446,1736144567951,-2996.610157,9.998e-05,2]
[347830463,1736144972577,-285.32,9.286e-05,2]
[347830464,1736144972601,-3531.0472176,9.934e-05,2]
[347830465,1736144972624,-192.90400356,9.934e-05,2]
[347830466,1736144972648,-3531.0472176,9.986e-05,2]
[347830467,1736144972671,-192.90400354,9.986e-05,2]
[347830468,1736144972695,-3843.924843,9.998e-05,2]
[347830469,1736144972719,-150.0,9.998e-05,2]
[347830470,1736144972743,-300.0,9.998e-05,2]
[347830471,1736144972765,-21783.19748977,9.998e-05,2]
[347830472,1736144972788,-500.0,9.999e-05,2]
[347830473,1736144972812,-500.0,9.999e-05,2]
[347830474,1736144972834,-500.0,9.999e-05,2]
[347830475,1736144972856,-500.0,9.999e-05,2]
[347830476,1736144972880,-500.0,9.999e-05,2]
[347830477,1736144972904,-500.0,9.999e-05,2]
[347830478,1736144972928,-581.1,9.999e-05,2]
[347830479,1736144972950,-500.0,9.999e-05,2]
[347830480,1736144972974,-500.0,9.999e-05,2]
[347830481,1736144972997,-500.0,9.999e-05,2]
[347830482,1736144973019,-500.0,9.999e-05,2]
[347830483,1736144973044,-500.0,9.999e-05,2]
[347830484,1736144973068,-616.75,9.999e-05,2]
[347830485,1736144973091,-500.0,9.999e-05,2]
[347830486,1736144973116,-500.0,9.999e-05,2]
[347830487,1736144973144,-500.0,9.999e-05,2]
[347830488,1736144973169,-500.0,9.999e-05,2]
[347830489,1736144973193,-500.0,9.999e-05,2]
[347830490,1736144973219,-539.0,9.999e-05,2]
[347830491,1736144973243,-500.0,9.999e-05,2]
[347830492,1736144973267,-679.67,9.999e-05,2]
[347830493,1736144973291,-500.0,9.999e-05,2]
[347830494,1736144973316,-500.0,9.999e-05,2]
[347830495,1736144973340,-500.0,9.999e-05,2]
[347830496,1736144973364,-500.0,9.999e-05,2]
[347830497,1736144973387,-354.77274699,9.999e-05,2]
[347830498,1736144973412,-500.0,9.999e-05,2]
[347830499,1736144973435,-500.0,9.999e-05,2]
[347830500,1736144973463,-500.0,9.999e-05,2]
[347830501,1736144973486,-500.0,9.999e-05,2]
[347830502,1736144973509,-500.0,9.999e-05,2]
[347830503,1736144973532,-500.0,9.999e-05,2]
[347830504,1736144973557,-500.0,9.999e-05,2]
[347830505,1736144973582,-500.0,9.999e-05,2]
[347830506,1736144973606,-500.0,9.999e-05,2]
[347830507,1736144973630,-500.0,9.999e-05,2]
[347830508,1736144973655,-500.0,9.999e-05,2]
[347830509,1736144973679,-500.0,9.999e-05,2]
[347830510,1736144973705,-500.0,9.999e-05,2]
[347830511,1736144973731,-537.04,9.999e-05,2]
[347830512,1736144973757,-676.52,9.999e-05,2]
[347830513,1736144973783,-742.41,9.999e-05,2]
[347830514,1736144973807,-500.0,9.999e-05,2]
[347830515,1736144973833,-500.0,9.999e-05,2]
[347830516,1736144973856,-500.0,9.999e-05,2]
[347830517,1736144973880,-500.0,9.999e-05,2]
[347830518,1736144973903,-500.0,9.999e-05,2]
[347830519,1736144973927,-500.0,9.999e-05,2]
[347830520,1736144973950,-500.0,9.999e-05,2]
[347830521,1736144973974,-1127.61,9.999e-05,2]
[347830522,1736144973999,-500.0,9.999e-05,2]
[347830523,1736144974023,-500.0,9.999e-05,2]
[347830524,1736144974046,-854.09,9.999e-05,2]
[347830525,1736144974069,-1050.16,9.999e-05,2]
[347830526,1736144974092,-1133.49,9.999e-05,2]
[347830527,1736144974116,-500.0,9.999e-05,2]
[347830528,1736144974144,-500.0,9.999e-05,2]
[347830529,1736144974169,-500.0,9.999e-05,2]
[347830530,1736144974192,-500.0,9.999e-05,2]
[347830531,1736144974217,-500.0,9.999e-05,2]
[347830532,1736144974240,-500.0,9.999e-05,2]
[347830533,1736144974264,-745.52,9.999e-05,2]
[347830534,1736144974289,-500.0,9.999e-05,2]
[347830535,1736144974314,-500.0,9.999e-05,2]
[347830536,1736144974337,-500.0,9.999e-05,2]
[347830537,1736144974360,-500.0,9.999e-05,2]
[347830538,1736144974384,-599.3,9.999e-05,2]
[347830539,1736144974410,-500.0,9.999e-05,2]
[347830540,1736144974434,-693.0,9.999e-05,2]
[347830541,1736144974458,-500.0,9.999e-05,2]
[347830542,1736144974482,-500.0,9.999e-05,2]
[347830543,1736144974505,-617.65,9.999e-05,2]
[347830544,1736144974528,-1719.61,9.999e-05,2]
[347830545,1736144974551,-500.0,9.999e-05,2]
[347830546,1736144974573,-500.0,9.999e-05,2]
[347830547,1736144974597,-2070.26,9.999e-05,2]
[347830548,1736144974619,-659.53,9.999e-05,2]
[347830549,1736144974643,-852.96,9.999e-05,2]
[347830550,1736144974666,-262.21635493,9.999e-05,2]
[347830551,1736144974690,-148077.28447347,0.0001,2]
[347830552,1736144974713,-9186568.44913887,0.0001,2]
[347830553,1736144974734,-224.7722,0.00010034,2]
[347830554,1736144974756,-801.9634,0.00010034,2]
[347830555,1736144974777,-849.6628,0.00010035,2]
[347830556,1736144974799,-3531.0472176,0.00010037,2]
[347830557,1736144974823,-8404.8146314,0.0001004,2]
[347830558,1736144974846,-150.0,0.00010082,2]
[347830559,1736144974868,-2011.0,0.0001011,2]
[347830560,1736144974890,-554.65402647,0.00010116,2]
[347830561,1736144974912,-500.0,0.00010133,2]
[347830562,1736144974935,-525.05,0.00010133,2]
[347830563,1736144974958,-500.0,0.00010133,2]
[347830564,1736144974980,-820.64,0.00010133,2]
[347830565,1736144975003,-500.0,0.00010133,2]
[347830566,1736144975026,-1529.02,0.00010134,2]
[347830567,1736144975050,-500.0,0.00010134,2]
[347830568,1736144975073,-1750.08,0.00010134,2]
[347830569,1736144975096,-1044.04,0.00010134,2]
[347830570,1736144975119,-3008.9,0.00010134,2]
[347830571,1736144975144,-1714.96,0.00010134,2]
[347830572,1736144975167,-1583.23,0.00010134,2]
[347830573,1736144975190,-1267.23,0.00010134,2]
[347830574,1736144975215,-915.32,0.00010134,2]
[347830575,1736144975239,-900.0,0.00010134,2]
[347830576,1736144975261,-588.70403065,0.00010134,2]
[347830577,1736144975284,-500.0,0.00010134,2]
[347830578,1736144975307,-3032.42,0.00010134,2]
[347830579,1736144975329,-842.83,0.00010134,2]
[347830580,1736144975352,-500.0,0.00010134,2]
[347830581,1736144975375,-1732.71,0.00010134,2]
[347830582,1736144975402,-6388.2,0.00010134,2]
[347830583,1736144975427,-523.7,0.00010134,2]
[347830584,1736144975455,-5781.88,0.00010134,2]
[347830585,1736144975479,-500.0,0.00010134,2]
[347830586,1736144975501,-500.0,0.00010134,2]
[347830587,1736144975523,-500.0,0.00010134,2]
[347830588,1736144975546,-506.59,0.00010134,2]
[347830589,1736144975571,-500.0,0.00010134,2]
[347830590,1736144975593,-1181.02,0.00010134,2]
[347830591,1736144975615,-549.52,0.00010134,2]
[347830592,1736144975638,-500.0,0.00010134,2]
[347830593,1736144975662,-500.0,0.00010134,2]
[347830594,1736144975685,-500.0,0.00010134,2]
[347830595,1736144975707,-500.0,0.00010134,2]
[347830596,1736144975729,-2164.86,0.00010134,2]
[347830597,1736144975752,-500.0,0.00010134,2]
[347830598,1736144975774,-500.0,0.00010134,2]
[347830599,1736144976011,-500.0,0.00010134,2]
[347830600,1736144976035,-607.31,0.00010134,2]
[347830601,1736144976057,-500.0,0.00010134,2]
[347830602,1736144976082,-3608.63,0.00010134,2]
[347830603,1736144976104,-500.0,0.00010134,2]
[347830604,1736144976131,-1817.72,0.00010134,2]
[347830605,1736144976154,-513.31,0.00010134,2]
[347830606,1736144976177,-500.0,0.00010134,2]
[347830607,1736144976199,-1748.04,0.00010134,2]
[347830608,1736144976221,-500.0,0.00010134,2]
[347830609,1736144976244,-2326.19,0.00010134,2]
[347830610,1736144976266,-500.0,0.00010134,2]
[347830611,1736144976288,-500.0,0.00010134,2]
[347830612,1736144976310,-3247.46,0.00010134,2]
[347830613,1736144976332,-1113.44,0.00010134,2]
[347830614,1736144976354,-500.0,0.00010134,2]
[347830615,1736144976376,-500.0,0.00010134,2]
[347830616,1736144976400,-594.02,0.00010134,2]
[347830617,1736144976422,-942.72,0.00010134,2]
[347830618,1736144976444,-500.0,0.00010134,2]
[347830619,1736144976467,-8147.86,0.00010134,2]
[347830620,1736144976488,-500.0,0.00010134,2]
[347830621,1736144976510,-500.0,0.00010134,2]
[347830622,1736144976532,-500.0,0.00010134,2]
[347830623,1736144976554,-574.78,0.00010134,2]
[347830624,1736144976576,-702.13,0.00010134,2]
[347830625,1736144976599,-541.15,0.00010134,2]
[347830626,1736144976621,-500.0,0.00010134,2]
[347830627,1736144976645,-1342.65,0.00010134,2]
[347830628,1736144976667,-504.83186551,0.00010134,2]
[347830629,1736144976689,-4597.27,0.00010134,2]
[347830630,1736144976711,-535.67,0.00010134,2]
[347830631,1736144976734,-500.0,0.00010134,2]
[347830632,1736144976756,-500.0,0.00010134,2]
[347830633,1736144976779,-579.95,0.00010134,2]
[347830634,1736144976801,-1041.94,0.00010134,2]
[347830635,1736144976823,-500.0,0.00010134,2]
[347830636,1736144976846,-1462.91,0.00010134,2]
[347830637,1736144976868,-500.0,0.00010134,2]
[347830638,1736144976890,-740.43,0.00010134,2]
[347830639,1736144976912,-3292.73,0.00010134,2]
[347830640,1736144976934,-789.11,0.00010134,2]
[347830641,1736144976957,-2644.15,0.00010134,2]
[347830642,1736144976980,-565.34,0.00010134,2]
[347830643,1736144977003,-1586.17,0.00010134,2]
[347830644,1736144977025,-686.5,0.00010134,2]
[347830645,1736144977050,-4064.51,0.00010134,2]
[347830646,1736144977073,-500.0,0.00010134,2]
[347830647,1736144977096,-2918.45,0.00010134,2]
[347830648,1736144977118,-1163.25,0.00010134,2]
[347830649,1736144977143,-500.0,0.00010134,2]
[347830650,1736144977167,-500.0,0.00010135,2]
[347830651,1736144977189,-500.0,0.00010135,2]
[347830652,1736144977211,-500.0,0.00010135,2]
[347830653,1736144977234,-500.0,0.00010135,2]
[347830654,1736144977262,-829.01,0.00010135,2]
[347830655,1736144977285,-500.0,0.00010135,2]
[347830656,1736144977309,-500.0,0.00010135,2]
[347830657,1736144977332,-500.0,0.00010135,2]
[347830658,1736144977355,-500.0,0.00010135,2]
[347830659,1736144977378,-500.0,0.00010135,2]
[347830660,1736144977402,-500.0,0.00010135,2]
[347830661,1736144977425,-500.0,0.00010135,2]
[347830662,1736144977448,-500.0,0.00010135,2]
[347830663,1736144977470,-500.0,0.00010135,2]
[347830664,1736144977491,-210.99585484,0.00010135,2]
[347830665,1736144977513,-500.0,0.00010135,2]
[347830666,1736144977535,-500.0,0.00010135,2]
[347830667,1736144977558,-500.0,0.00010135,2]
[347830668,1736144977581,-500.0,0.00010135,2]
[347830669,1736144977603,-500.0,0.00010135,2]
[347830670,1736144977625,-500.0,0.00010135,2]
[347830671,1736144977648,-500.0,0.00010135,2]
[347830672,1736144977671,-500.0,0.00010135,2]
[347830673,1736144977695,-500.0,0.00010135,2]
[347830674,1736144977717,-500.0,0.00010135,2]
[347830675,1736144977740,-167.44955686,0.00010135,2]
[347830676,1736144977762,-500.0,0.00010135,2]
[347830677,1736144977785,-1121.05,0.00010135,2]
[347830678,1736144977808,-500.0,0.00010135,2]
[347830679,1736144977831,-706.26,0.00010135,2]
[347830680,1736144977854,-500.0,0.00010135,2]
[347830681,1736144977877,-500.0,0.00010135,2]
[347830682,1736144977900,-500.0,0.00010135,2]
[347830683,1736144977923,-500.0,0.00010135,2]
[347830684,1736144977947,-850.88,0.00010135,2]
[347830685,1736144977971,-500.0,0.00010135,2]
[347830686,1736144977995,-500.0,0.00010135,2]
[347830687,1736144978021,-500.0,0.00010135,2]